[Event "*** Titled Tuesday Blitz"]
[Site "Chess.com"]
[Date "2021.03.02"]
[Round "6"]
[White "Deepweb2020"]
[Black "IngOscarArdila"]
[Result "1-0"]
[WhiteElo "2411"]
[BlackElo "2238"]
[TimeControl "180+1"]
[EndTime "11:05:48 PST"]
[Termination "Deepweb2020 won by resignation"]

1. d4 {[%clk 0:03:00.7]} 1... Nf6 {[%clk 0:02:58.6]} 2. c4 {[%clk 0:02:51.8]}
2... g6 {[%clk 0:02:57.7]} 3. g3 {[%clk 0:02:45.3]} 3... Bg7 {[%clk 0:02:57.2]}
4. Nf3 {[%clk 0:02:45]} 4... O-O {[%clk 0:02:57.8]} 5. Bg2 {[%clk 0:02:45.9]}
5... d6 {[%clk 0:02:57.8]} 6. O-O {[%clk 0:02:40.5]} 6... Nbd7 {[%clk
0:02:58.2]} 7. Nc3 {[%clk 0:02:40]} 7... e5 {[%clk 0:02:58.7]} 8. e4 {[%clk
0:02:39.4]} 8... exd4 {[%clk 0:02:58.2]} 9. Nxd4 {[%clk 0:02:40.3]} 9... Nc5
{[%clk 0:02:58.7]} 10. h3 {[%clk 0:02:36.4]} 10... Re8 {[%clk 0:02:58.6]} 11.
Re1 {[%clk 0:02:31.1]} 11... a5 {[%clk 0:02:58.5]} 12. Be3 {[%clk 0:02:29.8]}
12... c6 {[%clk 0:02:57.4]} 13. Qc2 {[%clk 0:02:29.6]} 13... Qc7 {[%clk
0:02:57.2]} 14. Rad1 {[%clk 0:02:28.5]} 14... Bd7 {[%clk 0:02:57.2]} 15. Bf4
{[%clk 0:02:28.1]} 15... Nh5 {[%clk 0:02:56.8]} 16. Be3 {[%clk 0:02:07.8]} 16...
Rad8 {[%clk 0:02:55.2]} 17. Rd2 {[%clk 0:02:02.2]} 17... Nf6 {[%clk 0:02:54.5]}
18. Red1 {[%clk 0:02:00.3]} 18... Bc8 {[%clk 0:02:53.8]} 19. Bf4 {[%clk
0:01:57.2]} 19... Nh5 {[%clk 0:02:51.9]} 20. Ndb5 {[%clk 0:01:38.8]} 20... cxb5
{[%clk 0:02:51.6]} 21. Bxd6 {[%clk 0:01:38.8]} 21... Rxd6 {[%clk 0:02:49.4]} 22.
Rxd6 {[%clk 0:01:38.9]} 22... bxc4 {[%clk 0:02:29.7]} 23. Nb5 {[%clk 0:01:34.7]}
23... Qb8 {[%clk 0:02:27.9]} 24. Qxc4 {[%clk 0:01:30.6]} 24... b6 {[%clk
0:02:18.9]} 25. Rd8 {[%clk 0:01:26.8]} 25... Nf6 {[%clk 0:02:07.9]} 26. Rxe8+
{[%clk 0:01:21.6]} 26... Nxe8 {[%clk 0:02:07.9]} 27. Rd8 {[%clk 0:01:20.7]}
27... Qe5 {[%clk 0:01:47]} 28. Rxc8 {[%clk 0:01:16]} 28... Bf8 {[%clk 0:01:44]}
29. f4 {[%clk 0:01:09.6]} 29... Qe7 {[%clk 0:01:43.4]} 30. e5 {[%clk 0:01:05.7]}
30... Kg7 {[%clk 0:01:42]} 31. Qd4 {[%clk 0:01:00.9]} 31... Ne6 {[%clk
0:01:39.4]} 32. Qc3 {[%clk 0:00:56.4]} 32... Qd7 {[%clk 0:01:32.4]} 33. Kh2
{[%clk 0:00:53.1]} 33... h5 {[%clk 0:01:30.5]} 34. a4 {[%clk 0:00:47.3]} 34...
h4 {[%clk 0:01:28.5]} 35. g4 {[%clk 0:00:38.9]} 35... Nxf4 {[%clk 0:01:16.8]}
36. e6+ {[%clk 0:00:38.7]} 1-0

[Event "*** Titled Tuesday Blitz"]
[Site "Chess.com"]
[Date "2021.03.02"]
[Round "6"]
[White "HrvojeZagreb"]
[Black "woodhy"]
[Result "0-1"]
[WhiteElo "2263"]
[BlackElo "2460"]
[TimeControl "180+1"]
[EndTime "11:05:48 PST"]
[Termination "woodhy won on time"]

1. d4 {[%clk 0:02:50.2]} 1... Nf6 {[%clk 0:02:59.2]} 2. Bf4 {[%clk 0:02:49]}
2... c5 {[%clk 0:02:56.9]} 3. e3 {[%clk 0:02:48.5]} 3... cxd4 {[%clk 0:02:55.3]}
4. exd4 {[%clk 0:02:49.4]} 4... b6 {[%clk 0:02:51.1]} 5. Nf3 {[%clk 0:02:39.3]}
5... Bb7 {[%clk 0:02:49.5]} 6. Bd3 {[%clk 0:02:35.4]} 6... d6 {[%clk 0:02:45.9]}
7. a4 {[%clk 0:02:32.2]} 7... Nbd7 {[%clk 0:02:45.5]} 8. a5 {[%clk 0:02:31]}
8... g6 {[%clk 0:02:43.6]} 9. Nc3 {[%clk 0:02:21.8]} 9... Bg7 {[%clk 0:02:42.6]}
10. Qd2 {[%clk 0:02:21.1]} 10... O-O {[%clk 0:02:39.9]} 11. Bh6 {[%clk
0:02:20.1]} 11... e5 {[%clk 0:02:38.8]} 12. Bxg7 {[%clk 0:01:19.1]} 12... Kxg7
{[%clk 0:02:37.9]} 13. Bb5 {[%clk 0:01:04.5]} 13... Bxf3 {[%clk 0:02:29]} 14.
gxf3 {[%clk 0:01:03]} 14... Qc7 {[%clk 0:02:28.1]} 15. h4 {[%clk 0:00:53.2]}
15... bxa5 {[%clk 0:02:24.2]} 16. h5 {[%clk 0:00:47.6]} 16... exd4 {[%clk
0:02:02.7]} 17. Qxd4 {[%clk 0:00:14.3]} 17... Ne5 {[%clk 0:01:58.9]} 18. Be2
{[%clk 0:00:11.8]} 18... Rfe8 {[%clk 0:01:56.2]} 19. Kf1 {[%clk 0:00:10.8]}
19... Qb6 {[%clk 0:01:49.6]} 20. Qd2 {[%clk 0:00:09.3]} 20... Qb7 {[%clk
0:01:22.3]} 21. hxg6 {[%clk 0:00:04.2]} 21... fxg6 {[%clk 0:01:23.2]} 22. Qh6+
{[%clk 0:00:04.1]} 22... Kg8 {[%clk 0:01:20.9]} 23. Qf4 {[%clk 0:00:03.8]} 23...
Rf8 {[%clk 0:01:18.4]} 24. Bc4+ {[%clk 0:00:02.3]} 24... Nxc4 {[%clk 0:01:18]}
25. Qxc4+ {[%clk 0:00:03.2]} 25... Qf7 {[%clk 0:01:18.2]} 26. Qd3 {[%clk
0:00:01.7]} 26... Ng4 {[%clk 0:01:15.9]} 0-1

[Event "*** Titled Tuesday Blitz"]
[Site "Chess.com"]
[Date "2021.03.02"]
[Round "6"]
[White "anon102030"]
[Black "agartha01"]
[Result "1/2-1/2"]
[WhiteElo "2701"]
[BlackElo "2521"]
[TimeControl "180+1"]
[EndTime "11:05:49 PST"]
[Termination "Game drawn by repetition"]

1. e4 {[%clk 0:03:00.9]} 1... c5 {[%clk 0:02:59.7]} 2. Nc3 {[%clk 0:02:56.9]}
2... Nc6 {[%clk 0:02:58.7]} 3. g3 {[%clk 0:02:57.3]} 3... g6 {[%clk 0:02:58.6]}
4. Bg2 {[%clk 0:02:56.5]} 4... Bg7 {[%clk 0:02:58.9]} 5. d3 {[%clk 0:02:57.1]}
5... d6 {[%clk 0:02:59]} 6. Be3 {[%clk 0:02:55.6]} 6... e6 {[%clk 0:02:58.8]} 7.
Nf3 {[%clk 0:02:51.4]} 7... Nge7 {[%clk 0:02:58.9]} 8. d4 {[%clk 0:02:47.5]}
8... cxd4 {[%clk 0:02:57.3]} 9. Nxd4 {[%clk 0:02:48.4]} 9... O-O {[%clk
0:02:57.3]} 10. O-O {[%clk 0:02:44.7]} 10... a6 {[%clk 0:02:53.6]} 11. Qd2
{[%clk 0:02:42.2]} 11... Ne5 {[%clk 0:02:48.9]} 12. b3 {[%clk 0:02:35.3]} 12...
Ng4 {[%clk 0:02:44]} 13. Bg5 {[%clk 0:02:34.8]} 13... h6 {[%clk 0:02:42.9]} 14.
Bxe7 {[%clk 0:02:31.7]} 14... Qxe7 {[%clk 0:02:43.8]} 15. Rad1 {[%clk
0:02:29.1]} 15... Ne5 {[%clk 0:02:40.1]} 16. f4 {[%clk 0:02:24.8]} 16... Nc6
{[%clk 0:02:39.8]} 17. Nxc6 {[%clk 0:02:17.7]} 17... bxc6 {[%clk 0:02:40.7]} 18.
Na4 {[%clk 0:02:15.9]} 18... d5 {[%clk 0:02:33.1]} 19. c4 {[%clk 0:01:53.1]}
19... dxc4 {[%clk 0:02:12.1]} 20. bxc4 {[%clk 0:01:51.4]} 20... e5 {[%clk
0:02:12.4]} 21. Qd6 {[%clk 0:01:40.8]} 21... Qxd6 {[%clk 0:02:05.6]} 22. Rxd6
{[%clk 0:01:41.7]} 22... Be6 {[%clk 0:01:55.5]} 23. Nb6 {[%clk 0:01:26.5]} 23...
Rab8 {[%clk 0:01:51.9]} 24. c5 {[%clk 0:01:01.6]} 24... exf4 {[%clk 0:01:45.7]}
25. gxf4 {[%clk 0:01:02.5]} 25... Rfd8 {[%clk 0:01:38.8]} 26. Rfd1 {[%clk
0:00:55.5]} 26... Rxd6 {[%clk 0:01:35]} 27. Rxd6 {[%clk 0:00:56.4]} 27... Bf8
{[%clk 0:01:31.7]} 28. Rxc6 {[%clk 0:00:50.1]} 28... Bxc5+ {[%clk 0:01:31.8]}
29. Rxc5 {[%clk 0:00:48.7]} 29... Rxb6 {[%clk 0:01:32.2]} 30. a3 {[%clk
0:00:37.6]} 30... Rb1+ {[%clk 0:01:23.5]} 31. Kf2 {[%clk 0:00:36.7]} 31... Rb2+
{[%clk 0:01:23.9]} 32. Kg1 {[%clk 0:00:33.6]} 32... Rb1+ {[%clk 0:01:01.6]} 33.
Kf2 {[%clk 0:00:33]} 33... Rb2+ {[%clk 0:01:01.8]} 34. Kg1 {[%clk 0:00:32.9]}
34... Rb1+ {[%clk 0:01:01.1]} 1/2-1/2

[Event "*** Titled Tuesday Blitz"]
[Site "Chess.com"]
[Date "2021.03.02"]
[Round "6"]
[White "campomania3"]
[Black "Romadk"]
[Result "1/2-1/2"]
[WhiteElo "2167"]
[BlackElo "2377"]
[TimeControl "180+1"]
[EndTime "11:05:49 PST"]
[Termination "Game drawn by repetition"]

1. d4 {[%clk 0:00:44.8]} 1... Nf6 {[%clk 0:02:58.4]} 2. c4 {[%clk 0:00:44.9]}
2... e6 {[%clk 0:02:58.7]} 3. Nc3 {[%clk 0:00:45]} 3... Bb4 {[%clk 0:02:59.3]}
4. f3 {[%clk 0:00:45.1]} 4... c5 {[%clk 0:02:58.7]} 5. d5 {[%clk 0:00:44.9]}
5... O-O {[%clk 0:02:58.4]} 6. e4 {[%clk 0:00:44.6]} 6... d6 {[%clk 0:02:58.5]}
7. Ne2 {[%clk 0:00:43.1]} 7... b5 {[%clk 0:02:58.4]} 8. Nf4 {[%clk 0:00:42.2]}
8... bxc4 {[%clk 0:02:57.4]} 9. Bxc4 {[%clk 0:00:41.6]} 9... e5 {[%clk
0:02:56.7]} 10. Ne2 {[%clk 0:00:41.1]} 10... Ba6 {[%clk 0:02:54]} 11. Bxa6
{[%clk 0:00:39.6]} 11... Nxa6 {[%clk 0:02:54.9]} 12. O-O {[%clk 0:00:39.6]}
12... h6 {[%clk 0:02:48.1]} 13. Be3 {[%clk 0:00:39.2]} 13... Nh7 {[%clk
0:02:47.8]} 14. Ng3 {[%clk 0:00:37.9]} 14... Rc8 {[%clk 0:02:28]} 15. Nf5 {[%clk
0:00:37.9]} 15... c4 {[%clk 0:02:28.2]} 16. Bxa7 {[%clk 0:00:34.6]} 16... Qa5
{[%clk 0:02:24.4]} 17. a4 {[%clk 0:00:31.7]} 17... Nc5 {[%clk 0:02:18.9]} 18.
Bxc5 {[%clk 0:00:30.9]} 18... Bxc5+ {[%clk 0:02:10.7]} 19. Kh1 {[%clk
0:00:31.2]} 19... Qb4 {[%clk 0:02:10.4]} 20. Nb5 {[%clk 0:00:30.8]} 20... Qxb2
{[%clk 0:02:08.7]} 21. Nbxd6 {[%clk 0:00:30.9]} 21... Bxd6 {[%clk 0:02:05.7]}
22. Nxd6 {[%clk 0:00:30.9]} 22... Rc7 {[%clk 0:02:05.8]} 23. Nb5 {[%clk
0:00:30.5]} 23... Rc5 {[%clk 0:01:59.7]} 24. Qc1 {[%clk 0:00:30.4]} 24... Qb4
{[%clk 0:01:55.6]} 25. Qc2 {[%clk 0:00:30.3]} 25... Ra8 {[%clk 0:01:53.4]} 26.
Rfb1 {[%clk 0:00:29.1]} 26... Qa5 {[%clk 0:01:53.3]} 27. Qc3 {[%clk 0:00:27.8]}
27... Qa6 {[%clk 0:01:46.8]} 28. Rc1 {[%clk 0:00:26]} 28... Nf6 {[%clk
0:01:41.6]} 29. h3 {[%clk 0:00:25.3]} 29... Nh5 {[%clk 0:01:41.3]} 30. Qxe5
{[%clk 0:00:25.1]} 30... g6 {[%clk 0:01:33.1]} 31. Nc7 {[%clk 0:00:24.6]} 31...
Qb7 {[%clk 0:01:19.9]} 32. Nxa8 {[%clk 0:00:24.1]} 32... Qxa8 {[%clk 0:01:20.8]}
33. Qd6 {[%clk 0:00:24.2]} 33... Rc8 {[%clk 0:01:19.9]} 34. a5 {[%clk
0:00:23.4]} 34... Rd8 {[%clk 0:01:20]} 35. Qc7 {[%clk 0:00:22.8]} 35... Rc8
{[%clk 0:01:19.4]} 36. Qd6 {[%clk 0:00:23]} 36... Rd8 {[%clk 0:01:19.4]} 37. Qc7
{[%clk 0:00:23.2]} 37... Rc8 {[%clk 0:01:19.7]} 38. Qd6 {[%clk 0:00:23.5]}
1/2-1/2

[Event "*** Titled Tuesday Blitz"]
[Site "Chess.com"]
[Date "2021.03.02"]
[Round "6"]
[White "XxPetroffsxX"]
[Black "LogoCzar"]
[Result "0-1"]
[WhiteElo "2145"]
[BlackElo "2344"]
[TimeControl "180+1"]
[EndTime "11:05:50 PST"]
[Termination "LogoCzar won on time"]

1. d4 {[%clk 0:03:00.9]} 1... d5 {[%clk 0:02:59.2]} 2. c4 {[%clk 0:03:01.3]}
2... c6 {[%clk 0:02:59.4]} 3. Nf3 {[%clk 0:02:59.4]} 3... e6 {[%clk 0:02:59.4]}
4. cxd5 {[%clk 0:02:57.6]} 4... exd5 {[%clk 0:02:59.4]} 5. Nc3 {[%clk
0:02:58.1]} 5... f5 {[%clk 0:02:59.7]} 6. Bf4 {[%clk 0:02:57.9]} 6... Nf6 {[%clk
0:02:59.9]} 7. Qc2 {[%clk 0:02:57.8]} 7... Be7 {[%clk 0:03:00]} 8. e3 {[%clk
0:02:58.2]} 8... O-O {[%clk 0:03:00.4]} 9. Bd3 {[%clk 0:02:58.6]} 9... Ne4
{[%clk 0:03:00.9]} 10. Bxb8 {[%clk 0:02:49.5]} 10... Rxb8 {[%clk 0:02:59]} 11.
O-O {[%clk 0:02:46.1]} 11... Bd6 {[%clk 0:02:55.9]} 12. Qb3 {[%clk 0:02:36.6]}
12... Kh8 {[%clk 0:02:53.6]} 13. Ne5 {[%clk 0:02:33.1]} 13... Nd2 {[%clk
0:02:48.1]} 14. Qc2 {[%clk 0:02:33]} 14... Nxf1 {[%clk 0:02:47.4]} 15. Rxf1
{[%clk 0:02:31.8]} 15... Bxe5 {[%clk 0:02:47.5]} 16. dxe5 {[%clk 0:02:31.3]}
16... Be6 {[%clk 0:02:40.8]} 17. Ne2 {[%clk 0:02:29.2]} 17... Qd7 {[%clk
0:02:34.6]} 18. f4 {[%clk 0:02:24.9]} 18... b6 {[%clk 0:02:32.6]} 19. Rf3 {[%clk
0:02:25]} 19... c5 {[%clk 0:02:32.2]} 20. Qc1 {[%clk 0:02:15.4]} 20... d4 {[%clk
0:02:19.1]} 21. exd4 {[%clk 0:02:01]} 21... cxd4 {[%clk 0:02:18]} 22. Rh3 {[%clk
0:02:00]} 22... Rbc8 {[%clk 0:02:11.2]} 23. Qe1 {[%clk 0:01:57.7]} 23... Bxa2
{[%clk 0:02:05.8]} 24. Qh4 {[%clk 0:01:46.6]} 24... g6 {[%clk 0:02:04.9]} 25.
Qg5 {[%clk 0:01:30.9]} 25... Kg8 {[%clk 0:01:57.8]} 26. Kf2 {[%clk 0:01:03.9]}
26... Bc4 {[%clk 0:01:51.9]} 27. Bxc4+ {[%clk 0:00:49.6]} 27... Rxc4 {[%clk
0:01:50.4]} 28. Rd3 {[%clk 0:00:31.2]} 28... Rc2 {[%clk 0:01:47.6]} 29. Qg3
{[%clk 0:00:22.7]} 29... Qb5 {[%clk 0:01:47.1]} 30. Qf3 {[%clk 0:00:20.7]} 30...
Qxb2 {[%clk 0:01:45.7]} 31. Qd5+ {[%clk 0:00:18.2]} 31... Kg7 {[%clk 0:01:42.6]}
32. Qf3 {[%clk 0:00:10.5]} 32... Rfc8 {[%clk 0:01:40]} 33. e6 {[%clk 0:00:08.2]}
33... Rxe2+ {[%clk 0:01:39.6]} 34. Qxe2 {[%clk 0:00:06.1]} 34... Rc2 {[%clk
0:01:40.1]} 0-1

[Event "*** Titled Tuesday Blitz"]
[Site "Chess.com"]
[Date "2021.03.02"]
[Round "6"]
[White "Walter_White_Poland"]
[Black "WonderChampion"]
[Result "1-0"]
[WhiteElo "2294"]
[BlackElo "2086"]
[TimeControl "180+1"]
[EndTime "11:05:50 PST"]
[Termination "Walter_White_Poland won on time"]

1. e4 {[%clk 0:03:00.9]} 1... c5 {[%clk 0:02:58.6]} 2. Nf3 {[%clk 0:03:01]} 2...
g6 {[%clk 0:02:53.6]} 3. c4 {[%clk 0:02:59.8]} 3... Bg7 {[%clk 0:02:50.1]} 4. d4
{[%clk 0:03:00.2]} 4... cxd4 {[%clk 0:02:48.2]} 5. Nxd4 {[%clk 0:03:00.4]} 5...
Nc6 {[%clk 0:02:47.2]} 6. Be3 {[%clk 0:02:59.7]} 6... Nf6 {[%clk 0:02:42.6]} 7.
Nc3 {[%clk 0:03:00.2]} 7... O-O {[%clk 0:02:40]} 8. Be2 {[%clk 0:03:00.6]} 8...
d5 {[%clk 0:02:38.1]} 9. cxd5 {[%clk 0:02:46.9]} 9... Ne5 {[%clk 0:02:28.8]} 10.
h3 {[%clk 0:02:30.4]} 10... Bd7 {[%clk 0:02:27.5]} 11. f4 {[%clk 0:02:10.3]}
11... Nh5 {[%clk 0:01:53.5]} 12. Bxh5 {[%clk 0:02:06.1]} 12... Nc4 {[%clk
0:01:08.4]} 13. Qe2 {[%clk 0:02:04.9]} 13... Nxe3 {[%clk 0:01:07.7]} 14. Qxe3
{[%clk 0:02:05.8]} 14... gxh5 {[%clk 0:01:08.6]} 15. O-O {[%clk 0:02:02.7]}
15... Qb6 {[%clk 0:01:05.6]} 16. Rad1 {[%clk 0:01:52]} 16... Rac8 {[%clk
0:01:03.5]} 17. e5 {[%clk 0:01:37.8]} 17... Rc4 {[%clk 0:00:59.9]} 18. b3 {[%clk
0:01:22.7]} 18... Rc7 {[%clk 0:00:42.6]} 19. Ne4 {[%clk 0:01:15.9]} 19... Rfc8
{[%clk 0:00:06.6]} 20. Kh1 {[%clk 0:01:14]} 20... a5 {[%clk 0:00:03.8]} 21. Ng5
{[%clk 0:01:04.8]} 1-0

[Event "*** Titled Tuesday Blitz"]
[Site "Chess.com"]
[Date "2021.03.02"]
[Round "6"]
[White "PotapovaM"]
[Black "superchess02"]
[Result "0-1"]
[WhiteElo "2532"]
[BlackElo "2784"]
[TimeControl "180+1"]
[EndTime "11:05:53 PST"]
[Termination "superchess02 won by resignation"]

1. d4 {[%clk 0:02:39.8]} 1... Nf6 {[%clk 0:02:59.7]} 2. c4 {[%clk 0:02:40.1]}
2... g6 {[%clk 0:03:00.1]} 3. Nc3 {[%clk 0:02:39.9]} 3... Bg7 {[%clk 0:03:01]}
4. e4 {[%clk 0:02:40.1]} 4... d6 {[%clk 0:03:01.9]} 5. h3 {[%clk 0:02:40.6]}
5... O-O {[%clk 0:03:02.4]} 6. Be3 {[%clk 0:02:40.9]} 6... e5 {[%clk 0:03:02]}
7. d5 {[%clk 0:02:41.2]} 7... Na6 {[%clk 0:03:01]} 8. g4 {[%clk 0:02:40.9]} 8...
Nc5 {[%clk 0:03:00.3]} 9. f3 {[%clk 0:02:40.9]} 9... a5 {[%clk 0:03:00.8]} 10.
Nge2 {[%clk 0:02:40.7]} 10... c6 {[%clk 0:03:01]} 11. Nc1 {[%clk 0:02:34.9]}
11... a4 {[%clk 0:03:00.5]} 12. Nd3 {[%clk 0:02:33.9]} 12... Nfd7 {[%clk
0:02:58.1]} 13. Qd2 {[%clk 0:02:28.7]} 13... f5 {[%clk 0:02:50]} 14. Bg5 {[%clk
0:02:12.3]} 14... Bf6 {[%clk 0:02:45.3]} 15. Bxf6 {[%clk 0:01:55.8]} 15... Qxf6
{[%clk 0:02:46.2]} 16. O-O-O {[%clk 0:01:39.7]} 16... Nxd3+ {[%clk 0:02:45.5]}
17. Bxd3 {[%clk 0:01:38.1]} 17... Nc5 {[%clk 0:02:36.8]} 18. Kb1 {[%clk
0:01:16.5]} 18... fxg4 {[%clk 0:02:30.4]} 19. fxg4 {[%clk 0:01:15.5]} 19... Qf2
{[%clk 0:02:29.4]} 20. Rhf1 {[%clk 0:00:53.4]} 20... Qxd2 {[%clk 0:02:28.4]} 21.
Rxf8+ {[%clk 0:00:53.3]} 21... Kxf8 {[%clk 0:02:29.3]} 22. Rxd2 {[%clk
0:00:54.2]} 22... Ke7 {[%clk 0:02:29.5]} 23. Kc2 {[%clk 0:00:52]} 23... Bd7
{[%clk 0:02:29.4]} 24. Rf2 {[%clk 0:00:51.8]} 24... Nxd3 {[%clk 0:02:13.5]} 25.
Kxd3 {[%clk 0:00:51.7]} 25... h5 {[%clk 0:02:14.1]} 26. gxh5 {[%clk 0:00:40.2]}
26... gxh5 {[%clk 0:02:15]} 27. h4 {[%clk 0:00:38.3]} 27... a3 {[%clk
0:02:15.2]} 28. bxa3 {[%clk 0:00:32.1]} 28... Rg8 {[%clk 0:02:10.9]} 29. Rf3
{[%clk 0:00:23.6]} 29... Rg4 {[%clk 0:02:06.5]} 30. a4 {[%clk 0:00:18.1]} 30...
Rxh4 {[%clk 0:02:05.1]} 31. a5 {[%clk 0:00:18.2]} 31... c5 {[%clk 0:02:01.2]}
32. Rg3 {[%clk 0:00:11.4]} 32... Rh3 {[%clk 0:01:59.4]} 33. Rxh3 {[%clk
0:00:11.2]} 33... Bxh3 {[%clk 0:02:00.3]} 34. Ke3 {[%clk 0:00:12.1]} 34... Bf1
{[%clk 0:02:00.4]} 35. Na4 {[%clk 0:00:05.6]} 35... Bxc4 {[%clk 0:01:58.2]} 36.
Nb6 {[%clk 0:00:06.3]} 36... Bxa2 {[%clk 0:01:58.2]} 37. Nc8+ {[%clk 0:00:06.2]}
37... Kd7 {[%clk 0:01:58.1]} 38. Nb6+ {[%clk 0:00:06.9]} 38... Kd8 {[%clk
0:01:58.1]} 39. Kf3 {[%clk 0:00:05.4]} 39... Bb3 {[%clk 0:01:57.6]} 40. Ke3
{[%clk 0:00:02.3]} 40... h4 {[%clk 0:01:57.5]} 41. Kf3 {[%clk 0:00:02.6]} 41...
c4 {[%clk 0:01:57.5]} 42. a6 {[%clk 0:00:02.2]} 42... bxa6 {[%clk 0:01:57.3]}
0-1

[Event "*** Titled Tuesday Blitz"]
[Site "Chess.com"]
[Date "2021.03.02"]
[Round "6"]
[White "Lysiak_Poltorak"]
[Black "DenisQ"]
[Result "1/2-1/2"]
[WhiteElo "2476"]
[BlackElo "2648"]
[TimeControl "180+1"]
[EndTime "11:05:57 PST"]
[Termination "Game drawn by agreement"]

1. d4 {[%clk 0:03:00.9]} 1... d5 {[%clk 0:02:59.3]} 2. c4 {[%clk 0:03:01.3]}
2... c6 {[%clk 0:02:59.2]} 3. Nc3 {[%clk 0:03:01.1]} 3... Nf6 {[%clk 0:02:58.6]}
4. Nf3 {[%clk 0:03:01.3]} 4... e6 {[%clk 0:02:58.3]} 5. Bg5 {[%clk 0:03:01.2]}
5... h6 {[%clk 0:02:57.8]} 6. Bxf6 {[%clk 0:02:59.7]} 6... Qxf6 {[%clk
0:02:57.1]} 7. e3 {[%clk 0:02:39.6]} 7... Nd7 {[%clk 0:02:56.8]} 8. Qc2 {[%clk
0:02:38.7]} 8... g6 {[%clk 0:02:56.1]} 9. Bd3 {[%clk 0:02:37.8]} 9... dxc4
{[%clk 0:02:55.6]} 10. Bxc4 {[%clk 0:02:37.8]} 10... Bg7 {[%clk 0:02:55.8]} 11.
e4 {[%clk 0:02:27.8]} 11... e5 {[%clk 0:02:44.4]} 12. dxe5 {[%clk 0:02:26.8]}
12... Nxe5 {[%clk 0:02:40.4]} 13. Nxe5 {[%clk 0:02:26.2]} 13... Qxe5 {[%clk
0:02:41.3]} 14. O-O-O {[%clk 0:02:12.4]} 14... O-O {[%clk 0:02:35.6]} 15. g3
{[%clk 0:02:10.7]} 15... Bg4 {[%clk 0:02:28.7]} 16. f4 {[%clk 0:02:06.1]} 16...
Qc5 {[%clk 0:02:27.5]} 17. Be2 {[%clk 0:02:06.6]} 17... Bxe2 {[%clk 0:02:21]}
18. Nxe2 {[%clk 0:02:06]} 18... Qxc2+ {[%clk 0:02:17]} 19. Kxc2 {[%clk
0:02:06.1]} 19... Rfd8 {[%clk 0:02:17.5]} 20. Nc3 {[%clk 0:01:57.3]} 20... Kf8
{[%clk 0:02:08.3]} 21. Rxd8+ {[%clk 0:01:28.8]} 21... Rxd8 {[%clk 0:02:07.3]}
22. Re1 {[%clk 0:01:29.7]} 22... Ke7 {[%clk 0:01:52.1]} 23. Re2 {[%clk
0:01:28.6]} 23... Bd4 {[%clk 0:01:49.2]} 24. Rd2 {[%clk 0:01:10.4]} 24... f5
{[%clk 0:01:42]} 25. e5 {[%clk 0:00:38.5]} 25... g5 {[%clk 0:01:32]} 26. Ne2
{[%clk 0:00:28.9]} 26... Bf2 {[%clk 0:01:27.1]} 27. Rxd8 {[%clk 0:00:26.8]}
27... Kxd8 {[%clk 0:01:26.6]} 28. Kd3 {[%clk 0:00:25.8]} 28... Ke7 {[%clk
0:01:10]} 29. Nd4 {[%clk 0:00:25.7]} 29... Bxd4 {[%clk 0:01:08.9]} 30. Kxd4
{[%clk 0:00:26.6]} 30... b6 {[%clk 0:01:05.5]} 31. h4 {[%clk 0:00:25.6]} 31...
g4 {[%clk 0:01:01.1]} 32. h5 {[%clk 0:00:25.7]} 1/2-1/2

[Event "*** Titled Tuesday Blitz"]
[Site "Chess.com"]
[Date "2021.03.02"]
[Round "6"]
[White "PavelShkapenko"]
[Black "HackingKid98"]
[Result "0-1"]
[WhiteElo "2669"]
[BlackElo "2464"]
[TimeControl "180+1"]
[EndTime "11:05:57 PST"]
[Termination "HackingKid98 won by resignation"]

1. e4 {[%clk 0:03:00.9]} 1... c6 {[%clk 0:02:59.1]} 2. d4 {[%clk 0:03:00.8]}
2... d5 {[%clk 0:03:00]} 3. e5 {[%clk 0:03:01.4]} 3... Bf5 {[%clk 0:02:59]} 4.
h4 {[%clk 0:03:01]} 4... h5 {[%clk 0:02:57]} 5. Bd3 {[%clk 0:03:01.1]} 5... Bxd3
{[%clk 0:02:56.3]} 6. Qxd3 {[%clk 0:03:02]} 6... e6 {[%clk 0:02:57.1]} 7. Bg5
{[%clk 0:03:00.7]} 7... Qa5+ {[%clk 0:02:57]} 8. Nd2 {[%clk 0:03:01]} 8... Qa6
{[%clk 0:02:57.9]} 9. c4 {[%clk 0:03:01.2]} 9... Bb4 {[%clk 0:02:55.1]} 10. b3
{[%clk 0:03:00.3]} 10... Ne7 {[%clk 0:02:53]} 11. Ne2 {[%clk 0:02:59.9]} 11...
Nf5 {[%clk 0:02:52.7]} 12. O-O {[%clk 0:03:00]} 12... Nd7 {[%clk 0:02:52.3]} 13.
Ng3 {[%clk 0:03:00]} 13... Bxd2 {[%clk 0:02:41.7]} 14. Nxf5 {[%clk 0:02:50]}
14... Bxg5 {[%clk 0:02:14.4]} 15. Nd6+ {[%clk 0:02:47.3]} 15... Ke7 {[%clk
0:02:07]} 16. hxg5 {[%clk 0:02:48.2]} 16... g6 {[%clk 0:01:56]} 17. Rfc1 {[%clk
0:02:41.1]} 17... h4 {[%clk 0:01:54.9]} 18. Qf3 {[%clk 0:02:39.3]} 18... Raf8
{[%clk 0:01:40.3]} 19. cxd5 {[%clk 0:02:38.7]} 19... exd5 {[%clk 0:01:37]} 20.
b4 {[%clk 0:02:38.8]} 20... h3 {[%clk 0:01:27]} 21. b5 {[%clk 0:02:36]} 21...
Qb6 {[%clk 0:01:25.9]} 22. bxc6 {[%clk 0:02:30.1]} 22... bxc6 {[%clk 0:01:26.8]}
23. Rab1 {[%clk 0:01:36.8]} 23... Qxd4 {[%clk 0:01:20.4]} 24. Rxc6 {[%clk
0:01:33.7]} 24... hxg2 {[%clk 0:01:11.3]} 25. Rc7 {[%clk 0:00:55.1]} 25... Qxe5
{[%clk 0:00:48]} 26. Qxg2 {[%clk 0:00:45.1]} 26... Kxd6 {[%clk 0:00:37.3]} 27.
Rbb7 {[%clk 0:00:41.4]} 27... Qe1+ {[%clk 0:00:35.2]} 0-1